lending/lending_fUSD_20251124
["ID","MTS","AMOUNT","RATE_DAILY","PERIOD"]
[394810456,1763973064129,-500.0,0.00038062,8]
[394810457,1763973064139,-500.0,0.00038062,8]
[394810458,1763973064148,-500.0,0.00038063,8]
[394810459,1763973064157,-500.0,0.00038063,8]
[394810460,1763973064166,-500.0,0.00038063,8]
[394810461,1763973064175,-322.63,0.00038063,8]
[394810462,1763973064184,-547.24,0.00038063,8]
[394810463,1763973064193,-500.0,0.00038063,8]
[394810464,1763973064203,-500.0,0.00038063,8]
[394810465,1763973064213,-1002.97,0.00038063,14]
[394810466,1763973064222,-304.20565827,0.00038063,8]
[394810467,1763973064232,-158.94641058,0.00038063,8]
[394810468,1763973064241,-723.91,0.00038063,8]
[394810469,1763973064251,-500.0,0.00038063,8]
[394810470,1763973064262,-307.56267847,0.00038063,8]
[394810471,1763973064271,-381.75637922,0.00038063,8]
[394810472,1763973064280,-500.0,0.00038063,8]
[394810473,1763973064289,-500.0,0.00038063,8]
[394810474,1763973064299,-500.0,0.00038063,8]
[394810475,1763973064307,-500.0,0.00038063,8]
[394810476,1763973064316,-500.0,0.00038063,8]
[394810477,1763973064326,-386.61232474,0.00038063,8]
[394810478,1763973064335,-500.0,0.00038063,8]
[394810479,1763973064344,-500.0,0.00038063,8]
[394810480,1763973064353,-500.0,0.00038063,8]
[394810481,1763973064368,-500.0,0.00038063,8]
[394810482,1763973064377,-500.0,0.00038063,8]
[394810483,1763973064386,-500.0,0.00038063,8]
[394810484,1763973064395,-500.0,0.00038063,8]
[394810485,1763973064405,-759.1,0.00038063,8]
[394810486,1763973064414,-275.34186218,0.00038063,8]
[394810487,1763973064424,-1327.37,0.00038063,8]
[394810488,1763973064433,-500.0,0.00038063,8]
[394810489,1763973064444,-500.0,0.00038063,8]
[394810490,1763973064453,-500.0,0.00038063,8]
[394810491,1763973064463,-500.0,0.00038063,8]
[394810492,1763973064472,-1246.3,0.00038063,8]
[394810493,1763973064482,-500.0,0.00038063,8]
[394810494,1763973064492,-221.84,0.00038063,8]
[394810495,1763973064501,-500.0,0.00038082,120]
[394810496,1763973064511,-306.39472777,0.00038102,2]
[394810497,1763973064521,-150.0,0.00038157,7]
[394810498,1763973064661,-222.42,0.00038173,8]
[394810499,1763973064671,-500.0,0.00038173,8]
[394810500,1763973064680,-500.0,0.00038173,8]
[394810501,1763973064689,-500.0,0.00038173,8]
[394810502,1763973064699,-500.0,0.00038173,8]
[394810503,1763973064708,-500.0,0.00038173,8]
[394810504,1763973064717,-649.13572805,0.00038173,8]
[394810505,1763973064728,-500.0,0.00038173,8]
[394810506,1763973064737,-568.01517694,0.00038173,8]
[394810507,1763973064747,-150.0,0.00038195,7]
[394810508,1763973064758,-2755.05,0.00038214,2]
[394810509,1763973064768,-27775.03,0.00038219,2]
[394810510,1763973064777,-150.0,0.00038242,7]
[394810511,1763973064786,-150.0,0.000383,7]
[394810512,1763973064795,-500.0,0.00038336,8]
[394810513,1763973064805,-500.0,0.00038336,8]
[394810514,1763973064815,-366.19990678,0.00038336,8]
[394810515,1763973064825,-2012.65,0.00038336,8]
[394810516,1763973064834,-566.37,0.00038336,8]
[394810517,1763973064843,-906.62,0.00038336,8]
[394810518,1763973064852,-500.0,0.00038336,8]
[394810519,1763973064861,-500.0,0.00038336,2]
[394810520,1763973064870,-500.0,0.00038336,8]
[394810521,1763973064880,-502.03,0.00038336,8]
[394810522,1763973064889,-500.0,0.00038336,8]
[394810523,1763973064900,-517.08,0.00038336,2]
[394810524,1763973064910,-500.0,0.00038336,8]
[394810525,1763973064920,-500.0,0.00038336,8]
[394810526,1763973064930,-205.68831124,0.00038337,8]
[394810527,1763973064939,-500.0,0.00038337,8]
[394810528,1763973064948,-500.0,0.00038337,8]
[394810529,1763973064958,-500.0,0.00038337,8]
[394810530,1763973064968,-478.82,0.00038337,8]
[394810531,1763973064977,-1002.97,0.00038337,14]
[394810532,1763973064992,-723.91,0.00038337,8]
[394810533,1763973065000,-178.2,0.00038337,8]
[394810534,1763973065011,-540.99,0.00038337,8]
[394810535,1763973065023,-500.0,0.00038337,8]
[394810536,1763973065033,-288.16978789,0.00038337,8]
[394810537,1763973065042,-500.0,0.00038337,8]
[394810538,1763973065052,-500.0,0.00038337,8]
[394810539,1763973065062,-500.0,0.00038337,8]
[394810540,1763973065072,-500.0,0.00038337,8]
[394810541,1763973065081,-500.0,0.00038337,8]
[394810542,1763973065090,-500.0,0.00038337,8]
[394810543,1763973065099,-500.0,0.00038337,8]
[394810544,1763973065109,-500.0,0.00038337,8]
[394810545,1763973065119,-759.1,0.00038337,8]
[394810546,1763973065128,-1327.37,0.00038337,8]
[394810547,1763973065138,-439.37029809,0.00038337,8]
[394810548,1763973065147,-395.44,0.00038337,8]
[394810549,1763973065156,-196.14,0.00038337,8]
[394810550,1763973065165,-219.31911437,0.00038337,8]
[394810551,1763973065174,-1246.3,0.00038337,8]
[394810552,1763973065186,-353.7180178,0.00038337,8]
[394810553,1763973065196,-11482.20929028,0.00038353,2]
[394810554,1763973065206,-203.94064656,0.00038354,15]
[394810555,1763973065216,-6175.57272039,0.00038354,2]
[394810556,1763973065225,-609.58,0.00038356,2]
[394810557,1763973065236,-570.66903257,0.00038361,2]
[394810558,1763973065245,-231.22,0.00038384,14]
[394810559,1763973065255,-6297.0,0.000384,30]
[394810560,1763973065266,-166.57029206,0.000384,30]
[394810561,1763973065275,-500.0,0.00038447,8]
[394810562,1763973065284,-500.0,0.00038447,8]
[394810563,1763973065293,-500.0,0.00038447,8]
[394810564,1763973065303,-479.66,0.00038447,8]
[394810565,1763973065312,-500.0,0.00038447,8]
[394810566,1763973065321,-500.0,0.00038447,8]
[394810567,1763973065329,-150.0,0.00038475,7]
[394810568,1763973065338,-2000.0,0.000385,38]
[394810569,1763973065347,-500.0,0.00038509,8]
[394810570,1763973065356,-500.0,0.00038509,2]
[394810571,1763973065365,-150.0,0.00038538,7]
[394810572,1763973065375,-168.04371873,0.00038608,12]
[394810573,1763973065384,-500.0,0.0003861,8]
[394810574,1763973065394,-500.0,0.0003861,8]
[394810575,1763973065403,-2012.65,0.0003861,8]
[394810576,1763973065413,-566.37,0.0003861,8]
[394810577,1763973065423,-906.62,0.0003861,8]
[394810578,1763973065432,-500.0,0.0003861,8]
[394810579,1763973065441,-500.0,0.0003861,2]
[394810580,1763973065451,-163.26,0.0003861,8]
[394810581,1763973065460,-502.03,0.0003861,8]
[394810582,1763973065469,-500.0,0.0003861,8]
[394810583,1763973065478,-517.08,0.0003861,2]
[394810584,1763973065487,-500.0,0.0003861,8]
[394810585,1763973065496,-494.80136947,0.00038611,8]
[394810586,1763973065506,-500.0,0.00038611,8]
[394810587,1763973065517,-500.0,0.00038611,8]
[394810588,1763973065527,-1003.01646044,0.00038611,30]
[394810589,1763973065536,-723.91,0.00038611,8]
[394810590,1763973065544,-618.65,0.00038611,8]
[394810591,1763973065554,-500.0,0.00038611,8]
[394810592,1763973065563,-613.6256029,0.00038611,8]
[394810593,1763973065572,-500.0,0.00038611,8]
[394810594,1763973065582,-288.78547349,0.00038611,8]
[394810595,1763973065591,-500.0,0.00038611,8]
[394810596,1763973065601,-500.0,0.00038611,8]
[394810597,1763973065610,-500.0,0.00038611,8]
[394810598,1763973065621,-759.1,0.00038611,8]
[394810599,1763973065630,-1327.37,0.00038611,8]
[394810600,1763973065640,-1246.3,0.00038611,8]
[394810601,1763973065650,-150.0,0.00038615,7]
[394810602,1763973065659,-150.0,0.00038615,7]
[394810603,1763973065669,-150.0,0.00038615,7]
[394810604,1763973065678,-592.49368,0.0003862,2]
[394810605,1763973065688,-500.0,0.0003863,120]
[394810606,1763973065698,-3410.49439048,0.0003867,2]
[394810607,1763973065708,-550.91,0.00038685,2]
[394810608,1763973065718,-183.15,0.000387,14]
[394810609,1763973065728,-10000.0,0.00038706,2]
[394810610,1763973065737,-150.0,0.00038708,7]
[394810611,1763973065747,-176.21,0.00038721,8]
[394810612,1763973065756,-500.0,0.00038721,8]
[394810613,1763973065770,-500.0,0.00038721,8]
[394810614,1763973065780,-500.0,0.00038721,8]
[394810615,1763973065790,-500.0,0.00038721,8]
[394810616,1763973065800,-500.0,0.00038806,8]
[394810617,1763973065810,-500.0,0.00038806,8]
[394810618,1763973065821,-500.0,0.00038806,8]
[394810619,1763973065830,-500.0,0.00038806,8]
[394810620,1763973065840,-624.9708388,0.00038806,2]
[394810621,1763973065851,-500.0,0.00038806,8]
[394810622,1763973065860,-500.0,0.00038806,8]
[394810623,1763973065869,-500.0,0.00038806,8]
[394810624,1763973065879,-500.0,0.00038806,8]
[394810625,1763973065888,-506.99879191,0.00038806,8]
[394810626,1763973065898,-508.07814751,0.00038806,8]
[394810627,1763973065907,-500.0,0.00038806,8]
[394810628,1763973065916,-506.97340014,0.00038806,8]
[394810629,1763973065925,-500.0,0.00038806,8]
[394810630,1763973065934,-500.0,0.00038806,8]
[394810631,1763973065943,-500.0,0.00038806,8]
[394810632,1763973065952,-548.59,0.00038806,8]
[394810633,1763973065961,-500.0,0.00038806,8]
[394810634,1763973065971,-500.0,0.00038806,8]
[394810635,1763973065983,-502.03475481,0.00038806,8]
[394810636,1763973065992,-500.0,0.00038806,8]
[394810637,1763973066001,-500.0,0.00038806,8]
[394810638,1763973066012,-500.0,0.00038806,8]
[394810639,1763973066023,-500.0,0.00038806,8]
[394810640,1763973066032,-500.0,0.00038806,8]
[394810641,1763973066041,-500.0,0.00038806,8]
[394810642,1763973066051,-606.81,0.00038806,8]
[394810643,1763973066060,-500.0,0.00038806,8]
[394810644,1763973066069,-500.0,0.00038806,8]
[394810645,1763973066079,-500.0,0.00038806,8]
[394810646,1763973066088,-150.0,0.00038825,7]
[394810647,1763973066097,-306.39472777,0.00038857,2]
[394810648,1763973066107,-503.14774146,0.00038873,5]
[394810649,1763973066116,-500.0,0.00038884,8]
[394810650,1763973066125,-577.96342089,0.00038884,8]
[394810651,1763973066134,-2012.65,0.00038884,8]
[394810652,1763973066144,-566.37,0.00038884,8]
[394810653,1763973066154,-906.62,0.00038884,8]
[394810654,1763973066164,-500.0,0.00038884,8]
[394810655,1763973066173,-502.03,0.00038884,8]
[394810656,1763973066183,-481.95,0.00038884,8]
[394810657,1763973066192,-517.08,0.00038884,2]
[394810658,1763973066202,-500.0,0.00038884,8]
[394810659,1763973066211,-500.0,0.00038885,8]
[394810660,1763973066220,-500.0,0.00038885,8]
[394810661,1763973066229,-723.91,0.00038885,8]
[394810662,1763973066239,-500.0,0.00038885,8]
[394810663,1763973066248,-500.0,0.00038885,8]
[394810664,1763973066257,-500.0,0.00038885,8]
[394810665,1763973066268,-500.0,0.00038885,8]
[394810666,1763973066278,-500.0,0.00038885,8]
[394810667,1763973066287,-759.1,0.00038885,8]
[394810668,1763973066296,-1327.37,0.00038885,8]
[394810669,1763973066307,-1246.3,0.00038885,8]
[394810670,1763973066316,-500.0,0.00038887,7]
[394810671,1763973066325,-218.8231771,0.0003889,2]
[394810672,1763973066335,-511.12963602,0.00038904,120]
[394810673,1763973066344,-150.0,0.0003892,7]
[394810674,1763973066353,-11482.20929028,0.0003894,2]
[394810675,1763973066363,-203.94064656,0.00038941,15]
[394810676,1763973066372,-6175.57272039,0.00038941,2]
[394810677,1763973066382,-123246.6794159,0.00038971,21]
[394810678,1763973066391,-85228.5742028,0.00038971,2]
[394810679,1763973066400,-3567.2108967,0.00038971,2]
[394810680,1763973066410,-11193.7758771,0.00038971,2]
[394810681,1763973066419,-500.0,0.00038995,8]
[394810682,1763973066429,-500.0,0.00038995,8]
[394810683,1763973066438,-500.0,0.00038995,8]
[394810684,1763973066447,-500.0,0.00038995,8]
[394810685,1763973066457,-1000.0,0.00038999,3]
[394810686,1763973066466,-1503.83740008,0.00039,2]
[394810687,1763973066476,-277.55631167,0.00039,120]
[394810688,1763973066486,-1000.0,0.00039005,3]
[394810689,1763973066497,-247.89835245,0.00039006,8]
[394810690,1763973066506,-500.0,0.00039006,8]
[394810691,1763973066518,-500.0,0.00039006,8]
[394810692,1763973066528,-500.0,0.00039006,8]
[394810693,1763973066537,-597.09424157,0.00039006,8]
[394810694,1763973066548,-1000.0,0.00039006,3]
[394810695,1763973066557,-150.0,0.00039035,7]
[394810696,1763973066567,-1000.0,0.00039054,2]
[394810697,1763973066577,-500.0,0.00039079,8]
[394810698,1763973066586,-500.0,0.00039079,2]
[394810699,1763973066595,-500.0,0.0003908,8]
[394810700,1763973066604,-500.0,0.0003908,8]
[394810701,1763973066614,-500.0,0.0003908,8]
[394810702,1763973066623,-505.21522898,0.0003908,8]
[394810703,1763973066632,-500.0,0.0003908,8]
[394810704,1763973066642,-500.0,0.0003908,8]
[394810705,1763973066651,-479.96343751,0.0003908,8]
[394810706,1763973066661,-568.25912338,0.0003908,8]
[394810707,1763973066670,-509.58653195,0.0003908,8]
[394810708,1763973066680,-456.5550071,0.0003908,8]
[394810709,1763973066689,-934.04,0.0003908,120]
[394810710,1763973066699,-934.04,0.00039108,120]
[394810711,1763973066709,-934.04,0.00039137,120]
[394810712,1763973066718,-497.984,0.00039158,8]
[394810713,1763973066728,-2012.65,0.00039158,8]
[394810714,1763973066738,-566.37,0.00039158,8]
[394810715,1763973066747,-906.62,0.00039158,8]
[394810716,1763973066756,-500.0,0.00039158,8]
[394810717,1763973066766,-502.03,0.00039158,8]
[394810718,1763973066776,-517.08,0.00039158,2]
[394810719,1763973066786,-446.35,0.00039158,8]
[394810720,1763973066795,-500.0,0.00039159,8]
[394810721,1763973066804,-500.0,0.00039159,8]
[394810722,1763973066813,-723.91,0.00039159,8]
[394810723,1763973066823,-500.0,0.00039159,8]
[394810724,1763973066832,-500.0,0.00039159,8]
[394810725,1763973066843,-500.0,0.00039159,8]
[394810726,1763973066853,-609.1291139,0.00039159,8]
[394810727,1763973066862,-500.0,0.00039159,8]
[394810728,1763973066871,-759.1,0.00039159,8]
[394810729,1763973066881,-1327.37,0.00039159,8]
[394810730,1763973066890,-1246.3,0.00039159,8]
[394810731,1763973066900,-934.04,0.00039167,120]
[394810732,1763973066910,-150.0,0.00039174,7]
[394810733,1763973066919,-150.0,0.00039174,7]
[394810734,1763973066928,-150.0,0.00039174,7]
[394810735,1763973066937,-150.0,0.00039174,7]
[394810736,1763973066946,-1362.33758212,0.00039187,2]
[394810737,1763973066955,-620.0,0.00039187,2]
[394810738,1763973066965,-199.07364582,0.00039187,2]
[394810739,1763973066974,-500.0,0.00039187,2]
[394810740,1763973066987,-500.0,0.00039187,2]
[394810741,1763973066996,-500.0,0.00039187,2]
[394810742,1763973067005,-500.0,0.00039187,2]
[394810743,1763973067016,-500.0,0.00039187,2]
[394810744,1763973067028,-500.0,0.00039187,2]
[394810745,1763973067038,-500.0,0.00039187,2]
[394810746,1763973067047,-500.0,0.00039187,2]
[394810747,1763973067057,-500.0,0.00039187,2]
[394810748,1763973067066,-500.0,0.00039187,2]
[394810749,1763973067075,-500.0,0.00039187,2]
[394810750,1763973067084,-500.0,0.00039187,2]
[394810751,1763973067094,-500.0,0.00039187,2]
[394810752,1763973067105,-500.0,0.00039187,2]
[394810753,1763973067114,-500.0,0.00039187,2]
[394810754,1763973067124,-500.0,0.00039187,2]
[394810755,1763973067134,-500.0,0.00039187,2]
[394810756,1763973067143,-475.70981304,0.00039187,2]
[394810757,1763973067153,-500.0,0.00039187,2]
[394810758,1763973067162,-500.0,0.00039187,2]
[394810759,1763973067171,-500.0,0.00039187,2]
[394810760,1763973067180,-500.0,0.00039187,2]
[394810761,1763973067189,-500.0,0.00039187,2]
[394810762,1763973067200,-500.0,0.00039187,2]
[394810763,1763973067209,-500.0,0.00039187,2]
[394810764,1763973067218,-500.0,0.00039187,2]
[394810765,1763973067229,-500.0,0.00039187,2]
[394810766,1763973067239,-500.0,0.00039187,2]
[394810767,1763973067248,-500.0,0.00039187,2]
[394810768,1763973067257,-500.0,0.00039187,2]
[394810769,1763973067268,-500.0,0.00039187,2]
[394810770,1763973067278,-500.0,0.00039187,2]
[394810771,1763973067290,-500.0,0.00039187,2]
[394810772,1763973067300,-500.0,0.00039187,2]
[394810773,1763973067309,-500.0,0.00039187,2]
[394810774,1763973067319,-500.0,0.00039187,2]
[394810775,1763973067449,-500.0,0.00039187,2]
[394810776,1763973067459,-500.0,0.00039187,2]
[394810777,1763973067468,-500.0,0.00039187,2]
[394810778,1763973067478,-166.66,0.00039191,30]
[394810779,1763973067489,-934.04,0.00039199,120]
[394810780,1763973067499,-934.04,0.00039233,120]
[394810781,1763973067508,-570.66903257,0.0003924,2]
[394810782,1763973067519,-500.0,0.00039269,8]
[394810783,1763973067528,-500.0,0.00039269,8]
[394810784,1763973067537,-631.83,0.00039269,8]
[394810785,1763973067547,-500.0,0.00039269,8]
[394810786,1763973067557,-934.04,0.00039269,120]
[394810787,1763973067565,-150.0,0.00039302,7]
[394810788,1763973067575,-934.04,0.00039308,120]
[394810789,1763973067584,-1615.853,0.00039321,2]
[394810790,1763973067593,-843.0,0.00039321,2]
[394810791,1763973067602,-1256.0,0.00039321,2]
[394810792,1763973067611,-661.708,0.00039321,2]
[394810793,1763973067619,-908.0,0.00039321,2]
[394810794,1763973067629,-1192.0,0.00039321,2]
[394810795,1763973067639,-3437.0,0.00039321,2]
[394810796,1763973067648,-609.0,0.00039321,2]
[394810797,1763973067659,-2660.0,0.00039321,2]
[394810798,1763973067669,-1320.0,0.00039321,2]
[394810799,1763973067679,-934.04,0.00039349,120]
[394810800,1763973067687,-150.0,0.00039349,7]
[394810801,1763973067696,-500.0,0.00039354,8]
[394810802,1763973067705,-500.0,0.00039354,8]
[394810803,1763973067714,-507.32466653,0.00039354,8]
[394810804,1763973067723,-168.0,0.00039365,2]
[394810805,1763973067732,-168.0,0.00039378,2]
[394810806,1763973067741,-934.04,0.00039393,120]
[394810807,1763973067751,-2012.65,0.00039432,8]
[394810808,1763973067761,-566.37,0.00039432,8]
[394810809,1763973067771,-906.62,0.00039432,8]
[394810810,1763973067779,-500.0,0.00039432,8]
[394810811,1763973067788,-502.03,0.00039432,8]
[394810812,1763973067798,-517.08,0.00039432,2]
[394810813,1763973067808,-624.38598,0.00039433,8]
[394810814,1763973067819,-500.0,0.00039433,8]
[394810815,1763973067827,-723.91,0.00039433,8]
[394810816,1763973067837,-436.53879996,0.00039433,8]
[394810817,1763973067846,-500.0,0.00039433,8]
[394810818,1763973067855,-500.0,0.00039433,8]
[394810819,1763973067864,-500.0,0.00039433,8]
[394810820,1763973067873,-759.1,0.00039433,8]
[394810821,1763973067882,-1327.37,0.00039433,8]
[394810822,1763973067891,-1246.3,0.00039433,8]
[394810823,1763973067900,-934.04,0.0003944,120]
[394810824,1763973067910,-168.0,0.00039447,2]
[394810825,1763973067919,-150.0,0.00039454,7]
[394810826,1763973067928,-150.0,0.00039454,7]
[394810827,1763973067937,-150.0,0.00039454,7]
[394810828,1763973067947,-934.04,0.00039492,120]
[394810829,1763973067956,-1829.0,0.000395,2]
[394810830,1763973067965,-11482.20929028,0.00039528,2]
[394810831,1763973067977,-203.94064656,0.00039528,15]
[394810832,1763973067987,-6175.57272039,0.00039528,2]
[394810833,1763973067996,-500.0,0.00039543,8]
[394810834,1763973068005,-500.0,0.00039543,8]
[394810835,1763973068017,-934.04,0.00039549,120]
[394810836,1763973068027,-306.39472777,0.00039612,2]
[394810837,1763973068038,-934.04,0.00039612,120]
[394810838,1763973068048,-592.49368,0.0003962,2]
[394810839,1763973068059,-500.0,0.00039628,8]
[394810840,1763973068069,-500.0,0.00039628,8]
[394810841,1763973068079,-150.0,0.00039641,7]
[394810842,1763973068089,-166.73,0.00039652,2]
[394810843,1763973068098,-168.0,0.00039654,2]
[394810844,1763973068107,-934.04,0.00039682,120]
[394810845,1763973068117,-150.0,0.00039683,7]
[394810846,1763973068127,-2012.65,0.00039706,8]
[394810847,1763973068137,-566.37,0.00039706,8]
[394810848,1763973068148,-906.62,0.00039706,8]
[394810849,1763973068157,-500.0,0.00039706,8]
[394810850,1763973068167,-502.03,0.00039706,8]
[394810851,1763973068177,-517.08,0.00039706,2]
[394810852,1763973068187,-500.0,0.00039707,8]
[394810853,1763973068197,-723.91,0.00039707,8]
[394810854,1763973068206,-500.0,0.00039707,8]
[394810855,1763973068215,-500.0,0.00039707,8]
[394810856,1763973068225,-500.0,0.00039707,8]
[394810857,1763973068235,-759.1,0.00039707,8]
[394810858,1763973068245,-1327.37,0.00039707,8]
[394810859,1763973068255,-1246.3,0.00039707,8]
[394810860,1763973068264,-620.0,0.00039735,2]
[394810861,1763973068274,-934.04,0.00039761,120]
[394810862,1763973068287,-654.0,0.0003977,20]
[394810863,1763973068297,-500.0,0.00039817,8]
[394810864,1763973068306,-639.68254068,0.00039817,8]
[394810865,1763973068315,-934.04,0.00039853,120]
[394810866,1763973068325,-150.0,0.00039874,7]
[394810867,1763973068335,-150.0,0.00039874,7]
[394810868,1763973068345,-150.0,0.00039874,7]
[394810869,1763973068354,-150.0,0.00039874,7]
[394810870,1763973068364,-500.0,0.00039902,8]
[394810871,1763973068374,-291.1,0.00039902,8]
[394810872,1763973068383,-166.66,0.00039952,30]
[394810873,1763973068394,-934.04,0.00039961,120]
[394810874,1763973068403,-2012.65,0.0003998,8]
[394810875,1763973068413,-566.37,0.0003998,8]
[394810876,1763973068423,-906.62,0.0003998,8]
[394810877,1763973068433,-500.0,0.0003998,8]
[394810878,1763973068442,-502.03,0.0003998,8]
[394810879,1763973068453,-517.08,0.0003998,2]
[394810880,1763973068462,-500.0,0.00039981,8]
[394810881,1763973068471,-723.91,0.00039981,8]
[394810882,1763973068481,-500.0,0.00039981,8]
[394810883,1763973068490,-500.0,0.00039981,8]
[394810884,1763973068500,-500.0,0.00039981,8]
[394810885,1763973068511,-759.1,0.00039981,8]
[394810886,1763973068520,-1327.37,0.00039981,8]
[394810887,1763973068530,-1246.3,0.00039981,8]
[394810888,1763973068540,-157.28534256,0.00039988,7]
[394810889,1763973068550,-492.38,0.0004,15]
[394810890,1763973068559,-231.78327925,0.0004,120]
[394810891,1763973068569,-1029.95,0.0004,2]
[394810892,1763973068579,-1000.0,0.0004,120]
[394810893,1763973068589,-2000.0,0.0004,60]
[394810894,1763973068598,-1010.3864859,0.0004,30]
[394810895,1763973068608,-2299.999999,0.0004,2]
[394810896,1763973068617,-168.0,0.00040024,2]
[394810897,1763973068626,-489.38,0.00040055,2]
[394810898,1763973068636,-150.0,0.00040065,7]
[394810899,1763973068646,-500.0,0.00040091,8]
[394810900,1763973068655,-934.04,0.00040094,120]
[394810901,1763973068665,-500.0,0.00040102,30]
[394810902,1763973068675,-500.0,0.00040102,30]
[394810903,1763973068685,-500.0,0.00040102,30]
[394810904,1763973068694,-150.0,0.00040107,7]
[394810905,1763973068704,-168.0,0.00040107,2]
[394810906,1763973068714,-11482.20929028,0.00040115,15]
[394810907,1763973068724,-203.94064656,0.00040115,15]
[394810908,1763973068734,-6175.57272039,0.00040115,15]
[394810909,1763973068744,-570.66903257,0.00040119,2]
[394810910,1763973068755,-150.0,0.00040162,120]
[394810911,1763973068766,-500.0,0.00040172,7]
[394810912,1763973068775,-150.0,0.00040173,5]
[394810913,1763973068784,-500.0,0.00040173,8]
[394810914,1763973068794,-500.0,0.00040173,8]
[394810915,1763973068803,-500.0,0.00040173,2]
[394810916,1763973068813,-500.0,0.00040176,8]
[394810917,1763973068822,-654.0,0.0004018,20]
[394810918,1763973068832,-168.04371873,0.00040239,14]
[394810919,1763973068842,-2012.65,0.00040254,8]
[394810920,1763973068851,-566.37,0.00040254,8]
[394810921,1763973068860,-906.62,0.00040254,8]
[394810922,1763973068869,-500.0,0.00040254,8]
[394810923,1763973068879,-502.03,0.00040254,8]
[394810924,1763973068889,-517.08,0.00040254,2]
[394810925,1763973068898,-500.0,0.00040255,8]
[394810926,1763973068907,-723.91,0.00040255,8]
[394810927,1763973068916,-518.11075488,0.00040255,8]
[394810928,1763973068925,-500.0,0.00040255,8]
[394810929,1763973068935,-220.27,0.00040255,8]
[394810930,1763973068944,-759.1,0.00040255,8]
[394810931,1763973068954,-1327.37,0.00040255,8]
[394810932,1763973068965,-1246.3,0.00040255,8]
[394810933,1763973068978,-8337.7500761,0.00040265,2]
[394810934,1763973068988,-150.0,0.00040294,7]
[394810935,1763973068998,-150.0,0.00040294,7]
[394810936,1763973069007,-150.0,0.00040294,7]
[394810937,1763973069019,-700.0,0.00040321,7]
[394810938,1763973069028,-500.0,0.00040321,7]
[394810939,1763973069037,-500.0,0.00040321,7]
[394810940,1763973069047,-1211.61,0.00040329,2]
[394810941,1763973069057,-1210.76,0.00040329,2]
[394810942,1763973069067,-300.0,0.00040329,2]
[394810943,1763973069076,-500.0,0.00040365,8]
[394810944,1763973069085,-306.39472777,0.00040367,28]
[394810945,1763973069095,-500.0,0.00040376,30]
[394810946,1763973069104,-500.0,0.00040376,30]
[394810947,1763973069113,-150.0,0.00040399,7]
[394810948,1763973069124,-500.0,0.00040416,120]
[394810949,1763973069133,-150.0,0.00040446,7]
[394810950,1763973069142,-500.0,0.00040447,8]
[394810951,1763973069153,-500.0,0.00040447,8]
[394810952,1763973069162,-500.0,0.0004045,8]
[394810953,1763973069171,-2000.0,0.000405,60]
[394810954,1763973069181,-151.0,0.00040521,2]
[394810955,1763973069190,-186.57498517,0.00040521,2]